[Event "Titled Tuesday Blitz October 11 Early 2022"]
[White "Moroni, Luca Jr"]
[Black "Salman, Pavel"]
[WhiteFideId "865834"]
[BlackFideId "24153753"]
[WhiteElo "2573"]
[BlackElo "2187"]
[Result "1-0"]
[Round "01"]
[TimeControl "180+1"]
[Date "2022.10.11"]
[WhiteClock "0:02:14"]
[BlackClock "0:01:06"]

1. d4 {[%clk 0:03:00]}  Nf6 {[%clk 0:02:57]} 2. Bf4 {[%clk 0:03:01]}  g6 {[%clk 0:02:55]} 3. Nc3 {[%clk 0:03:01]}  Bg7 {[%clk 0:02:55]} 4. e4 {[%clk 0:03:01]}  d6 {[%clk 0:02:55]} 5. Qd2 {[%clk 0:03:01]}  c6 {[%clk 0:02:50]} 6. f3 {[%clk 0:03:01]}  b5 {[%clk 0:02:48]} 7. O-O-O {[%clk 0:03:00]}  b4 {[%clk 0:02:46]} 8. Nce2 {[%clk 0:02:59]}  Qa5 {[%clk 0:02:46]} 9. Kb1 {[%clk 0:02:59]}  Be6 {[%clk 0:02:43]} 10. Nc1 {[%clk 0:02:58]}  O-O {[%clk 0:02:40]} 11. Bh6 {[%clk 0:02:58]}  Nbd7 {[%clk 0:02:35]} 12. h4 {[%clk 0:02:56]}  Rfb8 {[%clk 0:02:09]} 13. h5 {[%clk 0:02:43]}  Bh8 {[%clk 0:02:06]} 14. hxg6 {[%clk 0:02:40]}  fxg6 {[%clk 0:02:03]} 15. Nh3 {[%clk 0:02:35]}  Bxh3 {[%clk 0:01:52]} 16. Rxh3 {[%clk 0:02:36]}  Nb6 {[%clk 0:01:53]} 17. Nb3 {[%clk 0:02:33]}  Qa4 {[%clk 0:01:49]} 18. Bd3 {[%clk 0:02:25]}  d5 {[%clk 0:01:44]} 19. e5 {[%clk 0:02:24]}  Nfd7 {[%clk 0:01:27]} 20. Qg5 {[%clk 0:02:22]}  Kf7 {[%clk 0:01:13]} 21. e6+ {[%clk 0:02:16]}  Kxe6 {[%clk 0:01:08]} 22. Re1+ {[%clk 0:02:16]}  Kd6 {[%clk 0:01:07]} 23. Qxe7+ {[%clk 0:02:13]}  Kc7 {[%clk 0:01:07]} 24. Bf4+ {[%clk 0:02:14]}  Kb7 {[%clk 0:01:06]} 25. Nc5+ {[%clk 0:02:14]} 1-0


[Site "https://www.chess.com"]

[Event "Titled Tuesday Blitz October 11 Early 2022"]
[White "Mrudul Dehankar"]
[Black "Taichman, Ori"]
[WhiteFideId "25096990"]
[BlackFideId "2804069"]
[WhiteElo "2068"]
[BlackElo "2234"]
[Result "0-1"]
[Round "01"]
[TimeControl "180+1"]
[Date "2022.10.12"]
[WhiteClock "0:00:01"]
[BlackClock "0:00:06"]

1. e4 {[%clk 0:02:51]}  c5 {[%clk 0:02:59]} 2. Nf3 {[%clk 0:02:50]}  Nc6 {[%clk 0:02:56]} 3. d4 {[%clk 0:02:50]}  cxd4 {[%clk 0:02:50]} 4. Nxd4 {[%clk 0:02:50]}  d5 {[%clk 0:02:50]} 5. Bb5 {[%clk 0:02:42]}  dxe4 {[%clk 0:02:41]} 6. Nxc6 {[%clk 0:02:39]}  Qxd1+ {[%clk 0:02:42]} 7. Kxd1 {[%clk 0:02:39]}  a6 {[%clk 0:02:43]} 8. Nd4+ {[%clk 0:02:06]}  axb5 {[%clk 0:02:35]} 9. Nxb5 {[%clk 0:02:06]}  Bg4+ {[%clk 0:02:35]} 10. Ke1 {[%clk 0:01:56]}  Rc8 {[%clk 0:02:35]} 11. N1c3 {[%clk 0:01:55]}  e5 {[%clk 0:02:32]} 12. Be3 {[%clk 0:01:33]}  Nf6 {[%clk 0:02:13]} 13. h3 {[%clk 0:01:27]}  Bh5 {[%clk 0:02:08]} 14. g4 {[%clk 0:01:26]}  Bg6 {[%clk 0:02:07]} 15. Rd1 {[%clk 0:01:26]}  h5 {[%clk 0:01:29]} 16. Bb6 {[%clk 0:00:52]}  Bb4 {[%clk 0:00:52]} 17. g5 {[%clk 0:00:05]}  Nd7 {[%clk 0:00:49]} 18. Be3 {[%clk 0:00:04]}  Rc6 {[%clk 0:00:25]} 19. a3 {[%clk 0:00:02]}  Bxc3+ {[%clk 0:00:25]} 20. Nxc3 {[%clk 0:00:03]}  f5 {[%clk 0:00:24]} 21. Ke2 {[%clk 0:00:03]}  f4 {[%clk 0:00:24]} 22. Bc1 {[%clk 0:00:03]}  h4 {[%clk 0:00:21]} 23. Ke1 {[%clk 0:00:01]}  Nc5 {[%clk 0:00:16]} 24. Rd5 {[%clk 0:00:01]}  O-O {[%clk 0:00:12]} 25. Rxe5 {[%clk 0:00:01]}  Ne6 {[%clk 0:00:11]} 26. Nd5 {[%clk 0:00:02]}  Rxc2 {[%clk 0:00:10]} 27. Ne7+ {[%clk 0:00:02]}  Kh7 {[%clk 0:00:09]} 28. Kd1 {[%clk 0:00:03]}  Rxf2 {[%clk 0:00:04]} 29. Rxe6 {[%clk 0:00:02]}  Bh5+ {[%clk 0:00:03]} 30. Ke1 {[%clk 0:00:03]}  Re2+ {[%clk 0:00:03]} 31. Kf1 {[%clk 0:00:03]}  Rc2 {[%clk 0:00:03]} 32. g6+ {[%clk 0:00:03]}  Kh6 {[%clk 0:00:04]} 33. Nd5 {[%clk 0:00:01]}  Rxc1+ {[%clk 0:00:04]} 34. Kg2 {[%clk 0:00:01]}  Rxh1 {[%clk 0:00:04]} 35. Kxh1 {[%clk 0:00:01]}  Bf3+ {[%clk 0:00:05]} 36. Kg1 {[%clk 0:00:02]}  e3 {[%clk 0:00:06]} 37. Kf1 {[%clk 0:00:01]}  Bxd5 {[%clk 0:00:06]} 0-1


[Site "https://www.chess.com"]

[Event "Titled Tuesday Blitz October 11 Early 2022"]
[White "Namitbir Singh Walia"]
[Black "Urazayev, Arystanbek"]
[WhiteFideId "35071068"]
[BlackFideId "13709810"]
[WhiteElo "2239"]
[BlackElo "2441"]
[Result "0-1"]
[Round "01"]
[TimeControl "180+1"]
[Date "2022.10.12"]
[WhiteClock "0:00:03"]
[BlackClock "0:00:13"]

1. d4 {[%clk 0:02:59]}  Nf6 {[%clk 0:02:59]} 2. c4 {[%clk 0:02:58]}  g6 {[%clk 0:02:59]} 3. Nf3 {[%clk 0:02:58]}  Bg7 {[%clk 0:03:00]} 4. g3 {[%clk 0:02:59]}  O-O {[%clk 0:03:00]} 5. Bg2 {[%clk 0:02:59]}  d6 {[%clk 0:03:00]} 6. O-O {[%clk 0:03:00]}  c5 {[%clk 0:03:00]} 7. Nc3 {[%clk 0:02:55]}  Nc6 {[%clk 0:03:01]} 8. h3 {[%clk 0:02:40]}  Bf5 {[%clk 0:02:50]} 9. Re1 {[%clk 0:02:21]}  cxd4 {[%clk 0:02:44]} 10. Nxd4 {[%clk 0:02:20]}  Nxd4 {[%clk 0:02:45]} 11. Qxd4 {[%clk 0:02:20]}  Ne4 {[%clk 0:02:43]} 12. Qe3 {[%clk 0:02:06]}  Nxc3 {[%clk 0:02:43]} 13. bxc3 {[%clk 0:02:07]}  Qc7 {[%clk 0:02:38]} 14. Bd2 {[%clk 0:02:00]}  a6 {[%clk 0:01:48]} 15. g4 {[%clk 0:01:56]}  Be6 {[%clk 0:01:42]} 16. Rab1 {[%clk 0:01:57]}  Rab8 {[%clk 0:01:33]} 17. Bd5 {[%clk 0:01:44]}  Bxd5 {[%clk 0:01:28]} 18. cxd5 {[%clk 0:01:45]}  b5 {[%clk 0:01:28]} 19. Rec1 {[%clk 0:01:39]}  Rfc8 {[%clk 0:01:18]} 20. Qd3 {[%clk 0:01:36]}  Qc4 {[%clk 0:01:16]} 21. Rb4 {[%clk 0:01:30]}  Qxa2 {[%clk 0:01:11]} 22. Re4 {[%clk 0:01:07]}  Rc7 {[%clk 0:01:02]} 23. Bg5 {[%clk 0:01:05]}  Rbb7 {[%clk 0:00:55]} 24. c4 {[%clk 0:00:51]}  b4 {[%clk 0:00:52]} 25. c5 {[%clk 0:00:45]}  h6 {[%clk 0:00:20]} 26. cxd6 {[%clk 0:00:43]}  Rxc1+ {[%clk 0:00:19]} 27. Bxc1 {[%clk 0:00:42]}  exd6 {[%clk 0:00:20]} 28. g5 {[%clk 0:00:28]}  h5 {[%clk 0:00:19]} 29. Re8+ {[%clk 0:00:12]}  Kh7 {[%clk 0:00:19]} 30. Rc8 {[%clk 0:00:08]}  Re7 {[%clk 0:00:10]} 31. Bf4 {[%clk 0:00:05]}  Qxe2 {[%clk 0:00:10]} 32. Qxe2 {[%clk 0:00:05]}  Rxe2 {[%clk 0:00:10]} 33. Bxd6 {[%clk 0:00:06]}  b3 {[%clk 0:00:11]} 34. Rb8 {[%clk 0:00:04]}  Re1+ {[%clk 0:00:12]} 35. Kg2 {[%clk 0:00:04]}  b2 {[%clk 0:00:12]} 36. Bf8 {[%clk 0:00:02]}  b1=Q {[%clk 0:00:12]} 37. Rxb1 {[%clk 0:00:02]}  Rxb1 {[%clk 0:00:13]} 38. Ba3 {[%clk 0:00:03]}  Rd1 {[%clk 0:00:13]} 39. d6 {[%clk 0:00:03]} 0-1


[Site "https://www.chess.com"]

[Event "Titled Tuesday Blitz October 11 Early 2022"]
[White "Navalgund, Niranjan"]
[Black "Remizov, Yaroslav"]
[WhiteFideId "5030854"]
[BlackFideId "34134015"]
[WhiteElo "2294"]
[BlackElo "2417"]
[Result "0-1"]
[Round "01"]
[TimeControl "180+1"]
[Date "2022.10.12"]
[WhiteClock "0:00:33"]
[BlackClock "0:01:06"]

1. e4 {[%clk 0:02:57]}  c6 {[%clk 0:02:59]} 2. Nf3 {[%clk 0:02:56]}  d5 {[%clk 0:02:59]} 3. Nc3 {[%clk 0:02:56]}  dxe4 {[%clk 0:02:59]} 4. Nxe4 {[%clk 0:02:57]}  Nf6 {[%clk 0:03:00]} 5. Qe2 {[%clk 0:02:57]}  Nxe4 {[%clk 0:03:00]} 6. Qxe4 {[%clk 0:02:58]}  Qd5 {[%clk 0:03:01]} 7. Qf4 {[%clk 0:02:58]}  Qf5 {[%clk 0:03:01]} 8. Qg3 {[%clk 0:02:54]}  Qxc2 {[%clk 0:02:59]} 9. Be2 {[%clk 0:02:54]}  Qe4 {[%clk 0:02:56]} 10. d3 {[%clk 0:02:52]}  Qg4 {[%clk 0:02:55]} 11. Qc7 {[%clk 0:02:52]}  Na6 {[%clk 0:02:49]} 12. Qe5 {[%clk 0:02:48]}  f6 {[%clk 0:02:34]} 13. Qe3 {[%clk 0:02:46]}  Qxg2 {[%clk 0:02:20]} 14. Rg1 {[%clk 0:02:42]}  Qh3 {[%clk 0:02:20]} 15. a3 {[%clk 0:02:38]}  Qe6 {[%clk 0:02:19]} 16. Qd2 {[%clk 0:02:35]}  Nc5 {[%clk 0:02:16]} 17. Nd4 {[%clk 0:02:31]}  Qd5 {[%clk 0:02:14]} 18. Qc3 {[%clk 0:02:31]}  e5 {[%clk 0:02:06]} 19. Nc2 {[%clk 0:02:30]}  Nb3 {[%clk 0:02:03]} 20. Rb1 {[%clk 0:02:31]}  Nxc1 {[%clk 0:01:55]} 21. Rxc1 {[%clk 0:02:32]}  Be6 {[%clk 0:01:53]} 22. Ne3 {[%clk 0:02:32]}  Qb3 {[%clk 0:01:53]} 23. Qd2 {[%clk 0:02:27]}  g6 {[%clk 0:01:48]} 24. Rc3 {[%clk 0:02:26]}  Qb6 {[%clk 0:01:48]} 25. Nc4 {[%clk 0:02:26]}  Qc7 {[%clk 0:01:43]} 26. Qe3 {[%clk 0:02:21]}  Bxc4 {[%clk 0:01:41]} 27. dxc4 {[%clk 0:02:21]}  Bg7 {[%clk 0:01:38]} 28. h4 {[%clk 0:02:20]}  b6 {[%clk 0:01:28]} 29. h5 {[%clk 0:02:18]}  g5 {[%clk 0:01:28]} 30. Qe4 {[%clk 0:00:59]}  O-O-O {[%clk 0:01:24]} 31. c5 {[%clk 0:00:37]}  b5 {[%clk 0:01:22]} 32. a4 {[%clk 0:00:36]}  Rd4 {[%clk 0:01:08]} 33. Qf5+ {[%clk 0:00:32]}  Qd7 {[%clk 0:01:08]} 34. h6 {[%clk 0:00:33]}  Qxf5 {[%clk 0:01:07]} 35. hxg7 {[%clk 0:00:33]}  Qb1+ {[%clk 0:01:06]} 0-1


[Site "https://www.chess.com"]

[Event "Titled Tuesday Blitz October 11 Early 2022"]
[White "Nozdrachev, Leonid"]
[Black "Le, Tuan Minh"]
[WhiteFideId "24113433"]
[BlackFideId "12401153"]
[WhiteElo "2249"]
[BlackElo "2530"]
[Result "0-1"]
[Round "01"]
[TimeControl "180+1"]
[Date "2022.10.11"]
[WhiteClock "0:00:12"]
[BlackClock "0:00:08"]

1. d4 {[%clk 0:02:58]}  d5 {[%clk 0:03:00]} 2. Nf3 {[%clk 0:02:57]}  Nf6 {[%clk 0:02:58]} 3. c4 {[%clk 0:02:56]}  c6 {[%clk 0:02:58]} 4. g3 {[%clk 0:02:54]}  Bf5 {[%clk 0:02:56]} 5. Bg2 {[%clk 0:02:53]}  e6 {[%clk 0:02:57]} 6. O-O {[%clk 0:02:52]}  Nbd7 {[%clk 0:02:57]} 7. cxd5 {[%clk 0:02:44]}  exd5 {[%clk 0:02:55]} 8. Ne5 {[%clk 0:02:31]}  Be7 {[%clk 0:02:47]} 9. Nc3 {[%clk 0:02:30]}  O-O {[%clk 0:02:45]} 10. Bg5 {[%clk 0:02:28]}  Nxe5 {[%clk 0:02:22]} 11. dxe5 {[%clk 0:02:29]}  Ng4 {[%clk 0:02:23]} 12. Bxe7 {[%clk 0:02:22]}  Qxe7 {[%clk 0:02:24]} 13. e4 {[%clk 0:02:18]}  dxe4 {[%clk 0:02:22]} 14. Nxe4 {[%clk 0:02:01]}  Qxe5 {[%clk 0:02:14]} 15. Re1 {[%clk 0:02:01]}  Qxb2 {[%clk 0:01:04]} 16. Rb1 {[%clk 0:01:58]}  Qxa2 {[%clk 0:01:05]} 17. Rxb7 {[%clk 0:01:57]}  Rad8 {[%clk 0:00:57]} 18. Qa1 {[%clk 0:01:51]}  Qxa1 {[%clk 0:00:30]} 19. Rxa1 {[%clk 0:01:52]}  Rfe8 {[%clk 0:00:23]} 20. h3 {[%clk 0:01:33]}  Bxe4 {[%clk 0:00:20]} 21. hxg4 {[%clk 0:01:30]}  Bxg2 {[%clk 0:00:20]} 22. Kxg2 {[%clk 0:01:28]}  Ra8 {[%clk 0:00:18]} 23. Rc7 {[%clk 0:01:26]}  a6 {[%clk 0:00:11]} 24. Rxc6 {[%clk 0:01:21]}  Re6 {[%clk 0:00:12]} 25. Rxe6 {[%clk 0:01:20]}  fxe6 {[%clk 0:00:12]} 26. Ra5 {[%clk 0:01:20]}  Kf7 {[%clk 0:00:13]} 27. Kf3 {[%clk 0:01:20]}  h6 {[%clk 0:00:13]} 28. Kf4 {[%clk 0:01:16]}  Kf6 {[%clk 0:00:13]} 29. Ke4 {[%clk 0:01:09]}  Kf7 {[%clk 0:00:13]} 30. Kf4 {[%clk 0:01:02]}  Ke7 {[%clk 0:00:12]} 31. g5 {[%clk 0:01:01]}  hxg5+ {[%clk 0:00:08]} 32. Kxg5 {[%clk 0:01:02]}  Kf7 {[%clk 0:00:09]} 33. g4 {[%clk 0:01:00]}  Ra7 {[%clk 0:00:09]} 34. f4 {[%clk 0:00:59]}  Ke7 {[%clk 0:00:09]} 35. Kg6 {[%clk 0:00:55]}  Kd6 {[%clk 0:00:10]} 36. f5 {[%clk 0:00:52]}  exf5 {[%clk 0:00:11]} 37. gxf5 {[%clk 0:00:53]}  Kc6 {[%clk 0:00:10]} 38. Ra1 {[%clk 0:00:30]}  a5 {[%clk 0:00:10]} 39. Rc1+ {[%clk 0:00:30]}  Kb5 {[%clk 0:00:10]} 40. Rb1+ {[%clk 0:00:30]}  Kc5 {[%clk 0:00:11]} 41. Rc1+ {[%clk 0:00:30]}  Kd4 {[%clk 0:00:12]} 42. Rd1+ {[%clk 0:00:28]}  Ke3 {[%clk 0:00:12]} 43. Ra1 {[%clk 0:00:26]}  a4 {[%clk 0:00:12]} 44. Rxa4 {[%clk 0:00:18]}  Rxa4 {[%clk 0:00:13]} 45. Kxg7 {[%clk 0:00:18]}  Rg4+ {[%clk 0:00:13]} 46. Kh6 {[%clk 0:00:15]}  Rf4 {[%clk 0:00:06]} 47. Kg6 {[%clk 0:00:14]}  Ke4 {[%clk 0:00:07]} 48. f6 {[%clk 0:00:14]}  Ke5 {[%clk 0:00:07]} 49. f7 {[%clk 0:00:15]}  Ke6 {[%clk 0:00:08]} 50. Kg7 {[%clk 0:00:11]}  Rxf7+ {[%clk 0:00:08]} 51. Kg8 {[%clk 0:00:12]}  Kf6 {[%clk 0:00:08]} 0-1


[Site "https://www.chess.com"]

[Event "Titled Tuesday Blitz October 11 Early 2022"]
[White "Obrien, Matthew"]
[Black "Terry, Renato"]
[WhiteFideId "2059150"]
[BlackFideId "3803457"]
[WhiteElo "2540"]
[BlackElo "2577"]
[Result "0-1"]
[Round "01"]
[TimeControl "180+1"]
[Date "2022.10.11"]
[WhiteClock "0:00:07"]
[BlackClock "0:01:40"]

1. e4 {[%clk 0:03:00]}  c6 {[%clk 0:02:58]} 2. d4 {[%clk 0:02:58]}  d5 {[%clk 0:02:58]} 3. e5 {[%clk 0:02:58]}  Bf5 {[%clk 0:02:57]} 4. h4 {[%clk 0:02:59]}  h6 {[%clk 0:02:57]} 5. g4 {[%clk 0:02:58]}  Bd7 {[%clk 0:02:57]} 6. Be3 {[%clk 0:02:57]}  e6 {[%clk 0:02:56]} 7. h5 {[%clk 0:02:56]}  c5 {[%clk 0:02:54]} 8. dxc5 {[%clk 0:02:53]}  Qc7 {[%clk 0:02:53]} 9. Nf3 {[%clk 0:02:43]}  Bxc5 {[%clk 0:02:52]} 10. Bxc5 {[%clk 0:02:31]}  Qxc5 {[%clk 0:02:53]} 11. Nc3 {[%clk 0:02:23]}  Ne7 {[%clk 0:02:51]} 12. Qd4 {[%clk 0:02:14]}  Qc7 {[%clk 0:02:46]} 13. Nb5 {[%clk 0:02:08]}  Bxb5 {[%clk 0:02:46]} 14. Bxb5+ {[%clk 0:02:08]}  Nbc6 {[%clk 0:02:47]} 15. O-O-O {[%clk 0:01:54]}  O-O-O {[%clk 0:02:45]} 16. Qa4 {[%clk 0:01:45]}  Qb6 {[%clk 0:02:41]} 17. Rd2 {[%clk 0:01:30]}  Kb8 {[%clk 0:02:40]} 18. Kb1 {[%clk 0:01:30]}  Rc8 {[%clk 0:02:40]} 19. c3 {[%clk 0:01:29]}  a6 {[%clk 0:02:21]} 20. Bxc6 {[%clk 0:01:28]}  Nxc6 {[%clk 0:02:22]} 21. Qb3 {[%clk 0:01:09]}  Qc5 {[%clk 0:02:17]} 22. Re1 {[%clk 0:00:55]}  Na5 {[%clk 0:02:17]} 23. Qb4 {[%clk 0:00:48]}  Nc4 {[%clk 0:02:17]} 24. Rd4 {[%clk 0:00:42]}  Qxb4 {[%clk 0:02:15]} 25. cxb4 {[%clk 0:00:43]}  Rc7 {[%clk 0:02:16]} 26. Rc1 {[%clk 0:00:34]}  Rhc8 {[%clk 0:02:15]} 27. Rc3 {[%clk 0:00:34]}  Ka7 {[%clk 0:02:00]} 28. a3 {[%clk 0:00:33]}  Kb6 {[%clk 0:02:00]} 29. Ka2 {[%clk 0:00:29]}  Ka7 {[%clk 0:01:54]} 30. Rf4 {[%clk 0:00:21]}  Nb6 {[%clk 0:01:44]} 31. Rxc7 {[%clk 0:00:21]}  Rxc7 {[%clk 0:01:45]} 32. Kb3 {[%clk 0:00:20]}  Nc4 {[%clk 0:01:44]} 33. a4 {[%clk 0:00:12]}  b5 {[%clk 0:01:39]} 34. axb5 {[%clk 0:00:13]}  axb5 {[%clk 0:01:40]} 35. Rd4 {[%clk 0:00:09]}  Kb6 {[%clk 0:01:39]} 36. Rd1 {[%clk 0:00:09]}  Ra7 {[%clk 0:01:40]} 37. Re1 {[%clk 0:00:06]}  Ra8 {[%clk 0:01:40]} 38. Nd4 {[%clk 0:00:06]}  Rc8 {[%clk 0:01:40]} 39. f4 {[%clk 0:00:06]}  Nd2+ {[%clk 0:01:40]} 40. Ka2 {[%clk 0:00:07]}  Ra8# {[%clk 0:01:40]} 0-1


[Site "https://www.chess.com"]

[Event "Titled Tuesday Blitz October 11 Early 2022"]
[White "Ohanyan, Emin"]
[Black "Baches Garcia, Guillermo"]
[WhiteFideId "13312022"]
[BlackFideId "2209764"]
[WhiteElo "2302"]
[BlackElo "2454"]
[Result "1-0"]
[Round "01"]
[TimeControl "180+1"]
[Date "2022.10.12"]
[WhiteClock "0:00:04"]
[BlackClock "0:00:19"]

1. e4 {[%clk 0:02:52]}  c5 {[%clk 0:02:59]} 2. Nf3 {[%clk 0:02:44]}  d6 {[%clk 0:03:00]} 3. d4 {[%clk 0:02:44]}  cxd4 {[%clk 0:03:00]} 4. Nxd4 {[%clk 0:02:45]}  Nf6 {[%clk 0:03:01]} 5. Nc3 {[%clk 0:02:45]}  Nc6 {[%clk 0:03:01]} 6. Bc4 {[%clk 0:02:45]}  Bd7 {[%clk 0:03:01]} 7. Bb3 {[%clk 0:02:41]}  g6 {[%clk 0:02:59]} 8. O-O {[%clk 0:02:39]}  Bg7 {[%clk 0:02:55]} 9. Nxc6 {[%clk 0:01:40]}  Bxc6 {[%clk 0:02:53]} 10. f3 {[%clk 0:01:38]}  O-O {[%clk 0:02:51]} 11. Be3 {[%clk 0:01:36]}  b5 {[%clk 0:02:46]} 12. Qd2 {[%clk 0:01:32]}  a5 {[%clk 0:02:43]} 13. a3 {[%clk 0:01:16]}  b4 {[%clk 0:02:34]} 14. axb4 {[%clk 0:01:11]}  axb4 {[%clk 0:02:35]} 15. Ne2 {[%clk 0:01:08]}  Rb8 {[%clk 0:02:11]} 16. Nd4 {[%clk 0:01:04]}  Ba8 {[%clk 0:02:05]} 17. Ra7 {[%clk 0:01:04]}  Nd7 {[%clk 0:02:01]} 18. Rfa1 {[%clk 0:00:48]}  Nc5 {[%clk 0:02:00]} 19. Bd5 {[%clk 0:00:48]}  Bxd5 {[%clk 0:01:55]} 20. exd5 {[%clk 0:00:49]}  Bxd4 {[%clk 0:01:36]} 21. Bxd4 {[%clk 0:00:45]}  b3 {[%clk 0:01:29]} 22. c3 {[%clk 0:00:33]}  e5 {[%clk 0:01:23]} 23. dxe6 {[%clk 0:00:32]}  Nxe6 {[%clk 0:01:23]} 24. Bf2 {[%clk 0:00:29]}  d5 {[%clk 0:01:18]} 25. R7a5 {[%clk 0:00:27]}  Nc7 {[%clk 0:01:10]} 26. h4 {[%clk 0:00:20]}  h5 {[%clk 0:01:08]} 27. Re1 {[%clk 0:00:17]}  Rb7 {[%clk 0:01:07]} 28. Qg5 {[%clk 0:00:14]}  Qxg5 {[%clk 0:01:01]} 29. hxg5 {[%clk 0:00:15]}  Rd8 {[%clk 0:01:00]} 30. Bd4 {[%clk 0:00:14]}  Ne6 {[%clk 0:00:59]} 31. Bf6 {[%clk 0:00:15]}  Rc8 {[%clk 0:00:53]} 32. Rxd5 {[%clk 0:00:15]}  h4 {[%clk 0:00:53]} 33. Re4 {[%clk 0:00:14]}  Ng7 {[%clk 0:00:48]} 34. Rxh4 {[%clk 0:00:12]}  Nh5 {[%clk 0:00:49]} 35. Be5 {[%clk 0:00:11]}  Re7 {[%clk 0:00:43]} 36. Rc4 {[%clk 0:00:09]}  Ra8 {[%clk 0:00:30]} 37. Rb4 {[%clk 0:00:06]}  Ra1+ {[%clk 0:00:27]} 38. Kf2 {[%clk 0:00:06]}  Kh7 {[%clk 0:00:22]} 39. Rxb3 {[%clk 0:00:06]}  Ng7 {[%clk 0:00:19]} 40. Bxg7 {[%clk 0:00:03]}  Kxg7 {[%clk 0:00:18]} 41. Rb4 {[%clk 0:00:03]}  Rae1 {[%clk 0:00:18]} 42. Re4 {[%clk 0:00:02]}  R7xe4 {[%clk 0:00:18]} 43. fxe4 {[%clk 0:00:03]}  Rxe4 {[%clk 0:00:19]} 44. b4 {[%clk 0:00:04]}  Rc4 {[%clk 0:00:17]} 45. Rc5 {[%clk 0:00:04]}  Re4 {[%clk 0:00:17]} 46. b5 {[%clk 0:00:03]}  Re6 {[%clk 0:00:17]} 47. Rc6 {[%clk 0:00:03]}  Re5 {[%clk 0:00:17]} 48. b6 {[%clk 0:00:03]}  Rb5 {[%clk 0:00:18]} 49. c4 {[%clk 0:00:03]}  Kf8 {[%clk 0:00:19]} 50. cxb5 {[%clk 0:00:04]} 1-0


[Site "https://www.chess.com"]

[Event "Titled Tuesday Blitz October 11 Early 2022"]
[White "Osiecki, Stanislaw"]
[Black "Sai Han Thiha"]
[WhiteFideId "1102990"]
[BlackFideId "13012290"]
[WhiteElo "2088"]
[BlackElo "2061"]
[Result "0-1"]
[Round "01"]
[TimeControl "180+1"]
[Date "2022.10.12"]
[WhiteClock "0:00:31"]
[BlackClock "0:01:00"]

1. e4 {[%clk 0:02:58]}  c6 {[%clk 0:03:00]} 2. d4 {[%clk 0:02:57]}  d5 {[%clk 0:03:00]} 3. f3 {[%clk 0:02:58]}  dxe4 {[%clk 0:03:00]} 4. fxe4 {[%clk 0:02:58]}  e5 {[%clk 0:03:00]} 5. Nf3 {[%clk 0:02:58]}  Bg4 {[%clk 0:03:01]} 6. Bc4 {[%clk 0:02:56]}  Nd7 {[%clk 0:03:01]} 7. c3 {[%clk 0:02:54]}  b5 {[%clk 0:02:57]} 8. Bb3 {[%clk 0:02:54]}  Ngf6 {[%clk 0:02:57]} 9. O-O {[%clk 0:02:51]}  Bd6 {[%clk 0:02:56]} 10. h3 {[%clk 0:02:49]}  Bh5 {[%clk 0:02:40]} 11. Bg5 {[%clk 0:02:46]}  O-O {[%clk 0:02:39]} 12. Nbd2 {[%clk 0:02:45]}  Qc7 {[%clk 0:02:37]} 13. Qe1 {[%clk 0:02:37]}  Rae8 {[%clk 0:02:36]} 14. Qh4 {[%clk 0:02:36]}  Bg6 {[%clk 0:02:35]} 15. Kh1 {[%clk 0:02:14]}  exd4 {[%clk 0:02:29]} 16. Bxf6 {[%clk 0:01:47]}  Nxf6 {[%clk 0:02:28]} 17. Nxd4 {[%clk 0:01:37]}  Nxe4 {[%clk 0:02:01]} 18. Nxe4 {[%clk 0:01:33]}  Rxe4 {[%clk 0:02:02]} 19. Qf2 {[%clk 0:01:22]}  a6 {[%clk 0:01:42]} 20. Qd2 {[%clk 0:01:06]}  c5 {[%clk 0:01:31]} 21. Nf5 {[%clk 0:01:01]}  Bf4 {[%clk 0:01:31]} 22. Rxf4 {[%clk 0:00:52]}  Qxf4 {[%clk 0:01:15]} 23. Ne7+ {[%clk 0:00:51]}  Kh8 {[%clk 0:01:15]} 24. Nxg6+ {[%clk 0:00:51]}  hxg6 {[%clk 0:01:11]} 25. Qd7 {[%clk 0:00:38]}  c4 {[%clk 0:01:04]} 26. Bc2 {[%clk 0:00:37]}  Re2 {[%clk 0:01:03]} 27. Qd1 {[%clk 0:00:31]}  Qf2 {[%clk 0:01:00]} 0-1


[Site "https://www.chess.com"]